Cogmind - Beta 15 @@@ ROGUE MODE // 2025.08.12 @ 20:51:13 Player: Gatamar Result: Destroyed by Y-45 Defender with Beam Rifle Performance ------------- Evolutions (2) 1000 Regions Visited (4) 800 Robots Destroyed (50) 250 Value Destroyed (1742) 1742 Prototype IDs (2) 40 Alien Tech Used (0) 0 Bonus (0) 0 TOTAL SCORE: 3832 Bonus ------- None Cogmind --------- Core Integrity 0/550 Matter 213/300 Energy 160/160 System Corruption 0% Temperature Cool (9) Movement Core (500) Ox9 Location -8/Materials Parts ------- > --- POWER (1) -------- Light Nuclear Core > --- PROPULSION (2) --- (None) > --- UTILITY (6) ------ Huge Storage Unit Weight Redist. System > --- WEAPON (2) ------- Spear > --- INVENTORY (25) --- Light Ion Engine Light Ion Engine Light Treads Light Treads Armored Treads Armored Treads Coolant Injector Compact Battery (200) Advanced Visual Processing Unit Hardened Medium Armor Plating Particle Gun Improved Medium Laser Subdweller Laser Advanced Beam Rifle Advanced Beam Rifle EM Pulse Cannon Light Assault Rifle Minigun Light Cannon Flak Cannon Flail Peak State ------------ > --- POWER ------------ Deuterium Engine > --- PROPULSION ------- Armored Treads Armored Treads > --- UTILITY ---------- Improved Heat Sink Huge Storage Unit Weight Redist. System Power Shielding Power Shielding Improved Propulsion Shielding > --- WEAPON ----------- Flak Gun Flak Gun > --- INVENTORY -------- Light Ion Engine Light Ion Engine Light Treads Light Treads Armored Treads Armored Treads Coolant Injector Compact Battery Advanced Visual Processing Unit Hardened Medium Armor Plating Particle Gun Improved Medium Laser Subdweller Laser Advanced Beam Rifle Advanced Beam Rifle EM Pulse Cannon Light Assault Rifle Minigun Light Cannon Flail Spear [Rating: 33] Favorites ----------- Power Light Ion Engine Engine Light Ion Engine Power Core Light Nuclear Core Propulsion Armored Treads Treads Armored Treads Wheel Compact Wheel Utility Weight Redist. System Device Weight Redist. System Storage Huge Storage Unit Protection Power Shielding Weapon Light Assault Rifle Energy Gun Improved Medium Laser Ballistic Gun Light Assault Rifle Launcher Grenade Launcher Slashing Weapon Ripper Piercing Weapon Spear Build | -11 -10 -10 -10 -8 ------- Run | Yrd Mat Min Sub Mat Slots Evolved 4 | . . . . 4 Power . | . . . . . Propulsion . | . . . . . Utility 4 | . . . . 4 Weapon . | . . . . . Parts Attached 36 | 6 2 2 2 24 Power 6 | 1 . . . 5 Engine 4 | 1 . . . 3 Core 2 | . . . . 2 Reactor . | . . . . . Propulsion 8 | 2 . 2 . 4 Treads 6 | . . 2 . 4 Leg . | . . . . . Wheel 2 | 2 . . . . Hover . | . . . . . Flight . | . . . . . Utility 10 | 1 2 . . 7 Device 2 | . 1 . . 1 Storage 3 | 1 1 . . 1 Processor . | . . . . . Hackware . | . . . . . Protection 5 | . . . . 5 Artifact . | . . . . . Weapon 12 | 2 . . 2 8 Energy Gun 2 | . . . . 2 Energy Cannon . | . . . . . Ballistic Gun 7 | 2 . . 1 4 Ballistic Cannon . | . . . . . Launcher 1 | . . . . 1 Special Weapon . | . . . . . Impact Weapon . | . . . . . Slashing Weapon 1 | . . . 1 . Piercing Weapon 1 | . . . . 1 Special Melee Weapon . | . . . . . Unidentified Prototypes 2 | . . . . 2 Parts Lost 26 | . . 1 4 21 Power 4 | . . . . 4 Propulsion 6 | . . 1 2 3 Utility 7 | . . . . 7 Weapon 9 | . . . 2 7 Highest Loss Streak 8 | . . 1 3 8 To Critical Strikes 1 | . . . . 1 Average Backups 14 | 2 7 13 14 18 Power 2 | . 1 2 3 3 Propulsion 2 | 1 2 1 . 3 Utility 3 | . . 4 5 2 Weapon 6 | . 3 5 5 8 Tool/Special . | . . . . . Unused Backups 17 | . . . . 17 Power 1 | . . . . 1 Propulsion 2 | . . . . 2 Utility 4 | . . . . 4 Weapon 10 | . . . . 10 Tool/Special . | . . . . . Average Slot Usage (%) 94 | . 99 98 82 93 Engine 10 | . 14 14 14 7 Treads 13 | . . 18 7 14 Wheel 7 | . 28 8 8 . Device 15 | . 13 14 14 17 Storage 14 | . 14 14 14 15 Protection 8 | . . . . 18 Energy Gun 2 | . . . . 4 Ballistic Gun 18 | . 28 28 13 10 Slashing Weapon 1 | . . . 11 . Peak Build Rating 33 | 6 9 10 13 33 Average Rating 18 | 4 8 9 11 28 On Entrance 7 | . 6 9 10 13 Naked Turns . | . . . . . Heaviest Build 102 | 11 86 86 88 102 Greatest Support 46 | 32 38 46 46 46 Greatest Overweight (x) 10 | . 2 3 9 10 Average Overweight (x) 1 | . 1 1 2 2 Largest Inventory Capacity 25 | 8 25 25 25 25 Average Capacity 23 | 7 17 25 25 25 Most Carried 23 | 4 9 15 16 23 Average Carried 14 | 3 7 13 14 18 Final Capacity 25 | 8 25 25 25 25 Final Carried 21 | 4 9 15 14 21 Class Distribution -------------------- 99% | Mutant Dominant Class ---------------- Mutant | -10/Materials Mutant | -10/Mines Mutant | -10/Subcaves Mutant | -8/Materials Resources | -11 -10 -10 -10 -8 ----------- Run | Yrd Mat Min Sub Mat Matter Collected 1189 | 226 135 71 54 703 Remotely . | . . . . . Salvage Created 1596 | . 256 96 64 1180 Parts 101 | . 20 4 3 74 Haulers Intercepted . | . . . . . Recyclers Shooed 2 | . 2 . . . Parts Field Recycled . | . . . . . Retrieved Matter . | . . . . . Parts Self-Destructed . | . . . . . Prevented . | . . . . . Kills | -11 -10 -10 -10 -8 ------- Run | Yrd Mat Min Sub Mat Combat Hostiles Destroyed 43 | . 8 2 2 31 Melee 3 | . . . 2 1 Guns 34 | . 8 2 . 24 AOE 6 | . . . . 6 Classes Destroyed 8 | . 4 . 1 3 Worker 2 | . 2 . . . Builder 1 | . . . . 1 Watcher 4 | . 2 . . 2 Swarmer 10 | . 6 . . 4 Grunt 20 | . 2 2 . 16 Sentry 7 | . . . . 7 Specialist 4 | . . . . 4 Subdweller 2 | . . . 2 . Best Kill Streak 7 | . 6 2 1 7 Combat Bots Only 7 | . 4 2 1 7 Max Kills in Single Turn 2 | . 1 2 1 2 Gunslinging 1 | . . 1 . 1 Exploded 2 | . . . . 2 Melee 1 | . . . 1 1 Uniques/NPCs Destroyed . | . . . . . Combat | -11 -10 -10 -10 -8 -------- Run | Yrd Mat Min Sub Mat Hostile Shots Fired 327 | . 32 16 23 256 Missed 81 | . 10 3 6 62 Hits 246 | . 22 13 17 194 Projectile 246 | . 22 13 17 194 Critical Strikes 11 | . . . . 11 Actively Blocked 2 | . . . . 2 Damage Taken 3760 | . 221 209 389 2941 Core 743 | . 47 6 131 559 Absorbed by Shields . | . . . . . Redirected to Shielding 204 | . . . . 204 Core Remaining (%) 63 | 100 . . 26 . Volleys Fired 126 | . 23 8 4 91 Largest 2 | . 2 2 1 2 Hottest 117 | . 40 40 20 117 Shots Fired 231 | . 46 17 5 163 Gun 221 | . 46 17 5 153 Cannon . | . . . . . Launcher 10 | . . . . 10 Special . | . . . . . Kinetic 180 | . 46 17 5 112 Thermal 41 | . . . . 41 Explosive 10 | . . . . 10 Electromagnetic . | . . . . . Robot Hit Streak 13 | . 5 4 7 13 Robot Miss Streak 9 | . 3 3 . 9 Penetration Max . | . . . . . Secondary Targets 7 | . 1 1 . 5 Max Gunslinging Chain 1 | . 1 1 . 1 Shots Hit Robots 175 | . 23 8 10 134 Core Hits 156 | . 18 6 3 129 Critical Kills . | . . . . . Critical Parts Destroyed . | . . . . . Critical Strikes 2 | . . . . 2 Burn 2 | . . . . 2 Melee Attacks 13 | . . . 7 6 Impact . | . . . . . Slashing 7 | . . . 7 . Piercing 6 | . . . . 6 Sneak Attacks . | . . . . . Combat Hostiles . | . . . . . Follow-up Attacks . | . . . . . Damage Inflicted 3391 | . 335 138 249 2669 Guns 2509 | . 291 109 33 2076 Cannons . | . . . . . Explosions 483 | . . . . 483 Melee 321 | . . . 216 105 Ramming 78 | . 44 29 . 5 Kinetic 1944 | . 291 109 33 1511 Thermal 565 | . . . . 565 Explosive 483 | . . . . 483 Electromagnetic . | . . . . . Impact . | . . . . . Slashing 216 | . . . 216 . Piercing 105 | . . . . 105 Highest Corruption 6 | . . 6 6 . Average Corruption 5 | . . 4 6 . Corruption Purged . | . . . . . Corruption Blocked . | . . . . . Effects 47 | . . 31 16 . Message Errors 12 | . . 9 3 . Matter Fused 13 | . . 5 8 . Heat Flow Errors 7 | . . 6 1 . Energy Discharges 2 | . . 2 . . Data Loss (minor) 6 | . . 3 3 . Misfires 4 | . . 3 1 . Alerts 1 | . . 1 . . Weapon Failures 2 | . . 2 . . Overload Shots . | . . . . . Overflow Damage . | . . . . . Projectiles . | . . . . . Explosions . | . . . . . Melee . | . . . . . Knockbacks 1 | . 1 . . . Impact 1 | . 1 . . . Kinetic . | . . . . . Secondary . | . . . . . Self-Inflicted Damage 38 | . 21 13 . 4 Shots 1 | . . . . 1 Rammed 9 | . 4 4 . 1 Targets Rammed 9 | . 4 4 . 1 Kicked . | . . . . . Crushed . | . . . . . Highest Temperature 262 | . . 262 149 69 Average Temperature 69 | . . 100 91 27 Received Heat Transfer 1452 | . 12 96 48 1296 Effects 1 | . . 1 . . Energy Bleed 1 | . . 1 . . Siege Activations . | . . . . . Martial Activations . | . . . . . Shielding Activations . | . . . . . Robots Disrupted . | . . . . . Combat Hostiles . | . . . . . Robots Corrupted . | . . . . . Combat Hostiles . | . . . . . Parts Fried . | . . . . . Impact Corruptions . | . . . . . Robots Melted . | . . . . . Combat Hostiles . | . . . . . Parts Melted 4 | . . . . 4 Heat Transferred 1295 | . . . . 1295 Parts Sabotaged . | . . . . . Parts Stolen . | . . . . . Parts Stripped . | . . . . . Power Chain Reactions . | . . . . . Alert | -11 -10 -10 -10 -8 ------- Run | Yrd Mat Min Sub Mat Maximum Alert Level 1 | . . . . 1 Low Security (%) 91 | 100 100 100 . 83 Level 1 8 | . . . . 16 Level 2 . | . . . . . Level 3 . | . . . . . Level 4 . | . . . . . Level 5 . | . . . . . High Security . | . . . . . Max Security . | . . . . . Peak Influence 242 | . 88 50 . 242 Initial 24 | . . 24 . . Average 63 | . 34 3 . 111 Influence Increases 1295 | . 224 50 . 1021 Destroy 0b10 Robot/C 820 | . 160 40 . 620 Destroy 0b10 Robot/NC 35 | . 20 . . 15 Destroy Leader 188 | . 44 10 . 134 Disable Machine 15 | . . . . 15 Destroy Structure 57 | . . . . 57 Lose Combat Pursuer 180 | . . . . 180 Influence Decreases 1077 | . 160 114 . 803 Entered New Map 40 | . . 40 . . Time Decay 738 | . 160 74 . 504 Lost Part 190 | . . . . 190 Purge Threat 109 | . . . . 109 Squads Dispatched 8 | . 2 . . 6 Investigation 2 | . 2 . . . Extermination . | . . . . . Reinforcement 3 | . . . . 3 Assault . | . . . . . Garrison 3 | . . . . 3 Intercept . | . . . . . Searches Triggered . | . . . . . Construction Impeded . | . . . . . Haulers Reinforced . | . . . . . Active Scanning Responses . | . . . . . Cargo Convoy Interrupts . | . . . . . Stealth | -11 -10 -10 -10 -8 --------- Run | Yrd Mat Min Sub Mat Distress Signals 3 | . 1 . . 2 Communications Jammed . | . . . . . Distress Signals . | . . . . . Times Spotted 72 | . 14 4 2 52 Peak Tracking Total 5 | . 3 2 2 5 Tactical Retreats 10 | . . . . 10 Traps | -11 -10 -10 -10 -8 ------- Run | Yrd Mat Min Sub Mat Traps Triggered 3 | . 2 1 . . Indirectly . | . . . . . Trap Hack Attempts . | . . . . . Triggered . | . . . . . Disarmed . | . . . . . Reprogrammed . | . . . . . Reused . | . . . . . Traps Extracted . | . . . . . Installed . | . . . . . Triggered . | . . . . . Machines | -11 -10 -10 -10 -8 ---------- Run | Yrd Mat Min Sub Mat Machines Disabled 1 | . . . . 1 Max in Single Turn 1 | . . . . 1 Machines Repaired . | . . . . . Machines Dismantled . | . . . . . Machines Sabotaged . | . . . . . Overloaded Fab Kills . | . . . . . Hacking | -11 -10 -10 -10 -8 --------- Run | Yrd Mat Min Sub Mat Machines Accessed 7 | . 3 1 . 3 Terminals 3 | . 1 . . 2 Fabricators . | . . . . . Repair Stations . | . . . . . Recycling Units 2 | . 2 . . . Scanalyzers 1 | . . . . 1 Garrison Access . | . . . . . Total Hacks 10 | . 4 1 . 5 Successful 7 | . 2 1 . 4 Failed 3 | . 2 . . 1 Catastrophic . | . . . . . Database Lockouts . | . . . . . Manual . | . . . . . Terminals 6 | . 2 . . 4 Fabricators . | . . . . . Repair Stations . | . . . . . Recycling Units 2 | . 2 . . . Scanalyzers 1 | . . . . 1 Garrison Access . | . . . . . Terminal Hacks 5 | . . 1 . 4 Open Door 1 | . . 1 . . Alert Level 3 | . . . . 3 Unreport Threat 1 | . . . . 1 Fabricator Hacks . | . . . . . Repair Station Hacks . | . . . . . Recycling Unit Hacks 2 | . 2 . . . Report Inventory 2 | . 2 . . . Scanalyzer . | . . . . . Garrison Access Hacks . | . . . . . Unauthorized Hacks . | . . . . . Terminals . | . . . . . Fabricators . | . . . . . Repair Stations . | . . . . . Recycling Units . | . . . . . Scanalyzers . | . . . . . Garrison Access . | . . . . . Data Cores Recovered . | . . . . . Used . | . . . . . Hacking Detections 3 | . 2 . . 1 Full Trace Events . | . . . . . Feedback Events . | . . . . . Feedback Blocked . | . . . . . Robot Schematics Acquired . | . . . . . Robots Built . | . . . . . Authchips . | . . . . . Time . | . . . . . Total Robot Build Rating . | . . . . . Part Schematics Acquired . | . . . . . Parts Built . | . . . . . Authchips . | . . . . . Time . | . . . . . Total Part Build Rating . | . . . . . Parts Repaired . | . . . . . Time . | . . . . . Parts Recycled . | . . . . . Recycled Matter . | . . . . . Retrieved Matter . | . . . . . Retrieved Components . | . . . . . Parts Scanalyzed . | . . . . . Part Schematics Acquired . | . . . . . Parts Damaged . | . . . . . Bothacking | -11 -10 -10 -10 -8 ------------ Run | Yrd Mat Min Sub Mat Used RIF Installer . | . . . . . Robots Hacked . | . . . . . Non-combat . | . . . . . Combat . | . . . . . Robot Hacks Applied . | . . . . . Relay Couplers Released . | . . . . . Fabnet Peak Effective % . | . . . . . Robots Rewired . | . . . . . Allies Hacked . | . . . . . Hacks Repelled . | . . . . . Allies | -11 -10 -10 -10 -8 -------- Run | Yrd Mat Min Sub Mat Total Allies . | . . . . . Largest Group . | . . . . . Highest-Rated Group . | . . . . . Highest-Rated Ally . | . . . . . Total Orders . | . . . . . Ally Attacks . | . . . . . Total Damage . | . . . . . Kills . | . . . . . Allies Corrupted . | . . . . . Allies Melted . | . . . . . Intel | -11 -10 -10 -10 -8 ------- Run | Yrd Mat Min Sub Mat Active Infowar (turns) . | . . . . . Robot Analysis Total . | . . . . . Derelict Logs Recovered 3 | . . 2 1 . Drone Launches . | . . . . . Drone Recoveries . | . . . . . Exploration | -11 -10 -10 -10 -8 ------------- Run | Yrd Mat Min Sub Mat Turns Passed 4546 | 85 489 1360 472 2140 Spaces Moved 1967 | 73 355 696 247 596 Core 22 | 1 . . 9 12 Treads 865 | . . 363 41 461 Legs . | . . . . . Wheels 1080 | 72 355 333 197 123 Hover . | . . . . . Flight . | . . . . . Fastest Speed 50 | 50 100 130 145 160 Average Speed 204 | 99 115 189 178 299 Slowest Speed 550 | 100 130 240 500 550 Overloaded Moves . | . . . . . Propulsion Burnouts . | . . . . . Robots Hopped . | . . . . . Potential Cave-ins . | . . . . . Cave-ins Triggered . | . . . . . Exploration Rate (%) 45 | 4 47 97 23 56 Regions Visited 4 Branch Regions 2 Pre-discovered Areas 1 | . . 1 . . Known Exits Taken . | . . . . . Unknown Exits Taken 4 | 1 1 1 1 . Scrap Searched 3 | . . 1 2 . Spaces Dug . | . . . . . Terrain Destroyed 51 | . . . . 51 Melee . | . . . . . Projectile . | . . . . . AOE 51 | . . . . 51 Terrain Rammed . | . . . . . Walls Destroyed . | . . . . . Machines Disabled . | . . . . . Actions | -11 -10 -10 -10 -8 --------- Run | Yrd Mat Min Sub Mat Total 2239 | 82 394 724 263 776 Wait 44 | . 4 8 1 31 Move 1963 | 72 354 695 246 596 Hop . | . . . . . Pick Up 42 | 4 6 7 2 23 Fast Attach 8 | 6 . . . 2 Attach 22 | . 1 1 3 17 Detach . | . . . . . Swap 9 | . 1 1 . 7 Drop 2 | . 1 . . 1 Fire 126 | . 23 8 4 91 Melee 13 | . . . 7 6 Ram 7 | . 4 3 . . Kick . | . . . . . Crush 2 | . . 1 . 1 Escape Stasis . | . . . . . Rewire 1 | . . . . 1 Trap . | . . . . . Miscellaneous . | . . . . . Route ------- -11/Scrapyard -10/Materials (discovered 2 exits: *Mat / *Min) -10/Mines (discovered 3 exits: *Mat x2 / [*Sub]) -10/Subcaves -8/Materials History --------- Turn | Location | Event 36 | -11/Scrapyard | Discovered new exit (range 16) 86 | -11/Scrapyard | Entered Materials 277 | -10/Materials | Discovered new exit (range 13) 309 | -10/Materials | Build established: Mutant 535 | -10/Materials | Discovered new exit (range 8) 575 | -10/Materials | Entered Mines 583 | -10/Mines | Met a Derelict bent on vengeance 699 | -10/Mines | Identified exit to Materials 810 | -10/Mines | Discovered exit to Materials (range 5) 822 | -10/Mines | Joined a pair of Derelicts in attacking an 0b10 outpost 975 | -10/Mines | Learned location of Mines (-8) 1001 | -10/Mines | Met a Derelict who couldn't figure out how to use a Trap Extractor 1064 | -10/Mines | A weapon hastily lodged in a ceiling crevice suddenly fell to the ground 1916 | -10/Mines | Discovered new exit (range 7) 1935 | -10/Mines | Entered Subcaves 1962 | -10/Subcaves | Learned Materials emergency access door positions 1999 | -10/Subcaves | Disturbed a concealed Subdweller 2053 | -10/Subcaves | Lost 3 parts (1n2w) 2064 | -10/Subcaves | Core integrity fell below 50% 2385 | -10/Subcaves | Discovered new exit (range 10) 2407 | -10/Subcaves | Entered Materials 2407 | -8/Materials | Evolved 4 slots: Utility x4 2674 | -8/Materials | Lost 4 parts (1p1n2w) 3002 | -8/Materials | Garrison activated, responded to threat 3032 | -8/Materials | Destroyed 7 combat bots 3969 | -8/Materials | Core integrity fell below 50% 4528 | -8/Materials | Core integrity fell below 20% 4547 | -8/Materials | Destroyed by Y-45 Defender with Beam Rifle Last Messages --------------- 04486_ K-01 Serf collects debris. 04502_ Arm. Treads destroyed. 04502_ S-10 Pest destroyed. 04502_ Switching to secondary target: Y-45 Defender. 04510_ Deuterium Engine destroyed. 04511_ G-50 Soldier destroyed. 04511_ Switching to secondary target: Y-45 Defender. 04513_ Flak Gun destroyed. 04513_ Imp. Propulsion Shielding destroyed. 04516_ Critical hit (Destroy). 04516_ Arm. Treads destroyed. 04519_ Critical hit (Burn: +37). 04521_ Power Shielding destroyed. 04523_ G-47 Trooper destroyed. 04531_ Acquired 12 matter. 04540_ Imp. Heat Sink destroyed. 04544_ Flak Gun destroyed. 04546_ G-47 Trooper destroyed. Map ----- +----------------------------------------------------+ | ????# #+##+#### ######### | | ????# # | | ????# + % | | ????# =#[ | | ????# ### ##############+ | | ????# #?# # #???????? | | ????# #?# #! "" #???????? | | ??########+###?# # """#???????? | | ??#! #### # S"#???????? | | ??# * ! + + """#???????? | | ??# #### # """#???????? | | ??# #??# # #???????? | | ??###########??# #######???????? | | ????????########+#?????????????? | | ????????# #?????????????? | | ????????# #?????????????? | | ????????# #?????????????? | | ???##???# #?????????????? | | #### #### #?????????????? | | # ## #?????????????? | | # ## #?????????????? | | # ## #?????????????? | | # Y ## = #????##???????? | | # ########+## #???????? | | #==! %#!%= #???????? | | #==! [[@%* #???????? | | #=!! *#!s #???????? | | # ### ####### #???????? | | # #?# #??????# ?????? | | #! #?# #??????? #???? | | # #?# #???????? #???? | | # #?# #????????? ???? | | ########?# #????????? ???? | | ?????????# ??????????? ???? | | ?????????? ???????????? ????? | | ?????????? ????????????? ????? | | ?????????? ????????????????????? | | ?????????? ????????????????????? | | ?????????? ????????????????????? | | ?????????? ????????????????????? | | ???????????????????????????????? | | ???????????????????????????????? | | ???????????????????????????????? | | ???????????????????????????????? | | ???????????????????????????????? | | ???????????????????????????????? | | ???????????????????????????????? | | ???????????????????????????????? | | ???????????????????????????????? | | ???????????????????????????????? | +----------------------------------------------------+ Best States ------------- Heat Dissipation 45 Energy Generation 14 Energy Capacity 275 Matter Stores 450 Matter Capacity 450 Sight Range 16 Terrain Scan Density 10 Additional Mass Support 6 Armor Coverage 225 Power Shielding 33 Propulsion Shielding 66 Evasion (%) 40 Recoil Reduction 2 Item Schematics ----------------- None Robot Schematics ------------------ None Fabricated ------------ Nothing Repaired ---------- Nothing Alien Tech Used ----------------- None Achievements -------------- More Dakka Please Challenges ------------ None Game ------ Seed DroneAssemblyMachine Manual? 0 Play Time 00:24:41 Cumulative 10.9 hours Start 2025.08.12 @ 20:24:14 End 2025.08.12 @ 20:51:13 Sessions 1 Manual Loads 0 Difficulty Rogue Special Mode None Game No. 35 Rogue 35 Adventurer 0 Explorer 0 Win Type - Total 0 Types 0/0/0/0/0/0/0/0/0/0 Lore% 5 Gallery% 13 Achievement% 15 Wizard Run 0 Options --------- Layout 1 ASCII 0 Keyboard 0 Movement Numpad Keybinds 0 Fullscreen 1 Font 32/SmallcapsGlow Map View 50x35 Zoom Use 0% Tactical HUD 1 Map Filters NONE Filters NONE Steam 1 RUN: 9e76cf6f-0b79-42a0-b8e3-90286adbdb72